bitfinex/quotes_BTCUSD_20251205
["timestamp","ask_amount","ask_price","bid_price","bid_amount"]
[1764968485357,0.00024214,89388.0,89387.0,0.29674917]
[1764968485766,0.00024214,89388.0,89387.0,0.29774917]
[1764968487601,0.00024214,89388.0,89387.0,0.29874917]
[1764968490473,0.00024214,89388.0,89387.0,0.62174917]
[1764968491515,0.00024214,89388.0,89387.0,0.62074917]
[1764968491954,0.00024214,89388.0,89387.0,0.62274917]
[1764968492311,0.00024214,89388.0,89387.0,0.62074917]
[1764968492481,0.00024214,89388.0,89387.0,0.61974917]
[1764968492683,0.00024214,89388.0,89387.0,0.64146917]
[1764968493439,0.00024214,89388.0,89387.0,0.62374917]
[1764968493638,0.00024214,89388.0,89387.0,0.64146917]
[1764968493813,0.00024214,89388.0,89387.0,0.64246917]
[1764968494012,0.00024214,89388.0,89387.0,0.63846917]
[1764968494317,0.00024214,89388.0,89387.0,0.64046917]
[1764968496228,0.00024214,89388.0,89387.0,0.78926917]
[1764968499367,0.0002,89400.0,89399.0,0.22371614]
[1764968499578,0.0002,89400.0,89399.0,0.47479235]
[1764968499748,0.0002,89400.0,89399.0,0.48003235]
[1764968500645,0.0002,89400.0,89399.0,0.48103235]
[1764968501400,0.0002,89400.0,89399.0,0.48003235]
[1764968501621,0.0002,89400.0,89399.0,0.48103235]
[1764968501829,0.0002,89400.0,89399.0,0.59783535]
[1764968502553,0.0002,89400.0,89399.0,0.59683535]
[1764968502906,0.0002,89400.0,89399.0,0.59583535]
[1764968503327,0.0002,89400.0,89399.0,0.59783535]
[1764968504151,0.0002,89400.0,89399.0,0.60283535]
[1764968504976,0.00056313,89400.0,89399.0,0.60283535]
[1764968505375,0.00056313,89400.0,89399.0,0.59783535]
[1764968505921,0.0002,89420.0,89419.0,0.2861891]
[1764968506052,0.00031873,89420.0,89419.0,0.3091091]
[1764968506236,0.00031873,89420.0,89419.0,0.3143491]
[1764968506640,0.00031873,89420.0,89419.0,0.2966691]
[1764968506852,0.00031873,89420.0,89416.0,0.01118368]
[1764968507052,0.0019316,89420.0,89418.0,0.06252299]
[1764968507258,0.0019316,89420.0,89419.0,0.001]
[1764968507588,0.2255952,89420.0,89419.0,0.001]
[1764968507803,0.22366861,89418.0,89417.0,0.06252299]
[1764968508186,0.22366861,89418.0,89417.0,0.06776299]
[1764968508705,0.22366811,89419.0,89417.0,0.06776299]
[1764968509078,0.23678338,89420.0,89417.0,0.29143388]
[1764968509407,0.23677876,89420.0,89417.0,0.07894654]
[1764968509607,0.23677876,89420.0,89417.0,0.07994654]
[1764968509794,0.22366632,89419.0,89417.0,0.06876299]
[1764968510185,0.22366632,89419.0,89418.0,0.00524]
[1764968510382,0.0019316,89420.0,89419.0,0.06252299]
[1764968510585,0.0019316,89420.0,89419.0,0.2914291]
[1764968510789,0.2255952,89420.0,89419.0,0.06776299]
[1764968511471,0.22620024,89420.0,89419.0,0.06776299]
[1764968511877,0.22367175,89417.0,89416.0,0.06252299]
[1764968512244,0.2353696,89417.0,89415.0,0.06252299]
[1764968512446,0.22367861,89414.0,89413.0,0.01683322]
[1764968512625,0.23485729,89416.0,89414.0,0.06252299]
[1764968512841,0.22367611,89415.0,89414.0,0.06252299]
[1764968513037,0.23485733,89416.0,89413.0,0.25169826]
[1764968513242,0.01118355,89417.0,89415.0,0.00524]
[1764968513462,0.23485516,89417.0,89415.0,0.00524]
[1764968513665,0.22367361,89416.0,89415.0,0.00524]
[1764968513859,0.23485594,89417.0,89415.0,0.00524]
[1764968514068,0.01118355,89417.0,89416.0,0.06352299]
[1764968514264,0.23485446,89418.0,89415.0,0.24009951]
[1764968514446,0.23485446,89418.0,89416.0,0.06252299]
[1764968514846,0.22366628,89419.0,89417.0,0.22367016]
[1764968515070,0.0019316,89420.0,89419.0,0.06252299]
[1764968515275,0.0019316,89420.0,89419.0,0.06776299]
[1764968515613,0.2255952,89420.0,89419.0,0.06776299]
[1764968516925,0.2255952,89420.0,89416.0,0.01218368]
[1764968516926,0.22366922,89418.0,89417.0,0.06252299]
[1764968518490,0.22366922,89418.0,89416.0,0.06252299]
[1764968518693,0.22367111,89417.0,89416.0,0.06252299]
[1764968518889,0.22418541,89417.0,89416.0,0.06252299]
[1764968519102,0.0005143,89417.0,89416.0,0.06776299]
[1764968519305,0.22418541,89417.0,89416.0,0.06776299]
[1764968519675,0.0005143,89417.0,89416.0,0.06776299]
[1764968519967,0.22418541,89417.0,89416.0,0.06776299]
[1764968520232,0.01118418,89412.0,89410.0,0.06252299]
[1764968520380,0.22368416,89412.0,89410.0,0.07370742]
[1764968520580,0.22368416,89412.0,89411.0,0.06252299]
[1764968520926,0.0019316,89420.0,89412.0,0.07370717]
[1764968521042,0.22368112,89413.0,89412.0,0.06252299]
[1764968521240,0.22368112,89413.0,89409.0,0.00524]
[1764968521241,0.22368862,89410.0,89409.0,0.00524]
[1764968521463,0.22368862,89410.0,89409.0,0.06776299]
[1764968522259,0.22368672,89411.0,89410.0,0.06252299]
[1764968522661,0.01311478,89420.0,89415.0,0.06252299]
[1764968522889,0.01118468,89408.0,89405.0,0.00524]
[1764968523047,0.22369602,89408.0,89406.0,0.06252299]
[1764968524298,0.23489388,89403.0,89401.0,0.06252299]
[1764968524477,0.23489388,89403.0,89402.0,0.07935621]
[1764968524677,0.01118493,89406.0,89403.0,0.06252299]
[1764968524879,0.01118505,89405.0,89402.0,0.07370842]
[1764968525525,0.01118505,89405.0,89402.0,0.06252299]
[1764968525526,0.22370493,89404.0,89402.0,0.06252299]
[1764968525934,0.01118505,89405.0,89402.0,0.06252299]
[1764968525935,0.23488666,89405.0,89402.0,0.06252299]
[1764968526149,0.22370613,89403.0,89401.0,0.06252299]
[1764968526302,0.01564,89402.0,89401.0,0.001]
[1764968526504,0.3616,89402.0,89401.0,0.001]
[1764968526748,0.01118693,89390.0,89387.0,0.07371029]
[1764968526948,0.33864,89402.0,89395.0,0.0111863]
[1764968527152,0.2349113,89396.0,89394.0,0.06252299]
[1764968527505,0.2349105,89396.0,89394.0,0.06252299]
[1764968527690,0.01118605,89397.0,89394.0,0.06252299]
[1764968527853,0.23490809,89397.0,89394.0,0.06252299]
[1764968528256,0.01118568,89400.0,89396.0,0.01118618]
[1764968528257,0.23490075,89400.0,89396.0,0.01118618]
[1764968528516,0.23490075,89400.0,89394.0,0.29743715]
[1764968528517,0.23490539,89398.0,89395.0,0.0111863]
[1764968529285,0.0111858,89399.0,89395.0,0.0111863]
[1764968529286,0.0111853,89403.0,89399.0,0.22371508]
[1764968529486,0.01118568,89400.0,89397.0,0.00524]
[1764968530348,0.23489807,89401.0,89398.0,0.23490458]
[1764968530780,0.002,89400.0,89398.0,0.23490458]
[1764968531588,0.01118555,89401.0,89398.0,0.23490458]
[1764968531779,0.01118555,89401.0,89399.0,0.22371568]
[1764968531985,0.01118555,89401.0,89398.0,0.23490458]
[1764968532458,0.23489234,89403.0,89400.0,0.00524]
[1764968532702,0.0111853,89403.0,89400.0,0.00524]
[1764968532909,0.01118518,89404.0,89401.0,0.01118555]
[1764968533107,0.02886505,89405.0,89400.0,0.01118568]
[1764968533108,0.01768,89405.0,89400.0,0.01118568]
[1764968533307,0.01118505,89405.0,89401.0,0.01118555]
[1764968533510,0.01118518,89404.0,89400.0,0.01118568]
[1764968533727,0.0111853,89403.0,89399.0,0.23490159]
[1764968534263,0.23569748,89407.0,89399.0,0.23490159]
[1764968534264,0.01118418,89412.0,89404.0,0.01118518]
[1764968534430,0.23512138,89408.0,89404.0,0.23488634]
[1764968535499,0.00024204,89408.0,89407.0,0.29145912]
[1764968536625,0.00024204,89408.0,89407.0,0.29669912]
[1764968536825,0.00024204,89408.0,89407.0,0.29769912]
[1764968537034,0.00024204,89408.0,89407.0,0.29669912]
[1764968537497,0.00124204,89408.0,89407.0,0.29669912]
[1764968537835,0.00024204,89408.0,89407.0,0.29669912]
[1764968538898,0.00024204,89408.0,89407.0,0.29769912]
[1764968539323,0.00124204,89408.0,89407.0,0.29669912]
[1764968539525,0.00024204,89408.0,89407.0,0.29669912]
[1764968539730,0.00024204,89408.0,89407.0,0.29769912]
[1764968539956,0.00024204,89408.0,89407.0,0.30069912]
[1764968546854,0.00024204,89408.0,89407.0,0.46717912]
[1764968553561,0.00024204,89408.0,89407.0,0.44949912]
[1764968554320,0.00024204,89408.0,89407.0,0.46717912]
[1764968554554,0.00024204,89408.0,89407.0,0.44949912]
[1764968554686,0.00024204,89408.0,89407.0,0.44849912]
[1764968554882,0.00024204,89408.0,89407.0,0.22480299]
[1764968555089,0.00024204,89408.0,89407.0,0.44949912]
[1764968555271,0.22393566,89408.0,89407.0,0.22056299]
[1764968555469,0.00024204,89408.0,89407.0,0.15804]
[1764968555676,0.00024204,89408.0,89407.0,0.44425912]
[1764968556228,0.00024204,89408.0,89407.0,0.44125912]
[1764968556579,0.00024204,89408.0,89407.0,0.44225912]
[1764968556776,0.00024204,89408.0,89407.0,0.44025912]
[1764968557723,0.00124204,89408.0,89407.0,0.44025912]
[1764968558537,0.00124204,89408.0,89407.0,0.29145912]
[1764968559817,0.00124204,89408.0,89407.0,0.29669912]
[1764968560993,0.00024204,89408.0,89407.0,0.29769912]
[1764968561356,0.00024204,89408.0,89407.0,0.29869912]
[1764968561562,0.00024204,89408.0,89407.0,0.29769912]
[1764968561785,0.00024204,89408.0,89407.0,0.29869912]
[1764968563467,0.00024204,89408.0,89407.0,0.28821912]
[1764968563675,0.00024204,89408.0,89407.0,0.06452299]
[1764968563874,0.00024204,89408.0,89407.0,0.28821912]
[1764968564077,0.00024204,89408.0,89407.0,0.29145912]
[1764968564279,0.00024204,89408.0,89407.0,0.28721912]
[1764968564503,0.00024204,89408.0,89407.0,0.28821912]
[1764968564700,0.00024204,89408.0,89407.0,0.28721912]
[1764968564897,0.00024204,89408.0,89407.0,0.28621912]
[1764968565100,0.00124204,89408.0,89407.0,0.28621912]
[1764968568105,0.00124204,89408.0,89407.0,0.29145912]
[1764968568310,0.00124204,89408.0,89407.0,0.29669912]
[1764968568510,0.00124204,89408.0,89407.0,0.29145912]
[1764968569313,0.00124204,89408.0,89407.0,0.29669912]
[1764968570411,0.00124204,89408.0,89407.0,0.31437912]
[1764968570746,0.00124204,89408.0,89407.0,0.33121234]
[1764968571259,0.00024204,89408.0,89407.0,0.33121234]
[1764968571615,0.00024204,89408.0,89407.0,0.33421234]
[1764968571831,0.00024204,89408.0,89407.0,0.31603729]
[1764968572037,0.00024204,89408.0,89407.0,0.33371729]
[1764968572245,0.00024204,89408.0,89407.0,0.08186116]
[1764968572835,0.22393566,89408.0,89407.0,0.08186116]
[1764968573111,0.22393566,89408.0,89407.0,0.08086116]
[1764968573253,0.26422853,89408.0,89407.0,0.01883322]
[1764968573610,0.26422853,89408.0,89398.0,0.00524]
[1764968573611,0.01118555,89401.0,89398.0,0.00524]
[1764968573772,0.22371614,89399.0,89398.0,0.00524]
[1764968575038,0.22371614,89399.0,89398.0,0.00624]
[1764968576077,0.22371614,89399.0,89398.0,0.00724]
[1764968576288,0.22370936,89402.0,89398.0,0.02890593]
[1764968576499,0.01118555,89401.0,89398.0,0.00724]
[1764968576701,0.2237139,89400.0,89398.0,0.00724]
[1764968577134,0.2237139,89400.0,89398.0,0.00624]
[1764968577585,0.22371614,89399.0,89398.0,0.00624]
[1764968577999,0.0111853,89403.0,89401.0,0.22371059]
[1764968578162,0.23489164,89403.0,89400.0,0.22371332]
[1764968579405,0.23489164,89403.0,89400.0,0.01118568]
[1764968579616,0.23489164,89403.0,89401.0,0.22371105]
[1764968579986,0.0111853,89403.0,89401.0,0.22371105]
[1764968580189,0.23488941,89404.0,89401.0,0.22370975]
[1764968580598,0.01118518,89404.0,89401.0,0.22370975]
[1764968580795,0.01118518,89404.0,89402.0,0.22370755]
[1764968581007,0.0111848,89407.0,89403.0,0.00524]
[1764968581359,0.22370363,89404.0,89403.0,0.06776299]
[1764968581779,0.22470363,89404.0,89403.0,0.06776299]
[1764968583391,0.22370113,89405.0,89403.0,0.06776299]
[1764968583568,0.22370363,89404.0,89403.0,0.06352299]
[1764968583979,0.22370113,89405.0,89403.0,0.06352299]
[1764968584176,0.22370113,89405.0,89403.0,0.06876299]
[1764968585060,0.23488316,89407.0,89404.0,0.22370334]
[1764968587090,0.22369912,89406.0,89404.0,0.22370334]
[1764968587424,0.22369912,89406.0,89403.0,0.29741361]
[1764968587609,0.22369912,89406.0,89404.0,0.2237036]
[1764968587810,0.22369912,89406.0,89403.0,0.29741361]
[1764968587811,0.22369863,89406.0,89403.0,0.29741361]
[1764968588021,0.22369863,89406.0,89404.0,0.22370346]
[1764968588269,0.22469863,89406.0,89404.0,0.22370346]
[1764968588674,0.001,89406.0,89405.0,0.00524]
[1764968588974,0.22469863,89406.0,89405.0,0.00524]
[1764968589659,0.22369863,89406.0,89405.0,0.00524]
[1764968589980,0.22469863,89406.0,89405.0,0.00524]
[1764968590180,0.001,89406.0,89405.0,0.00524]
[1764968590377,0.001,89406.0,89405.0,0.29670412]
[1764968590727,0.22469863,89406.0,89405.0,0.06252299]
[1764968591351,0.22371614,89399.0,89398.0,0.06776299]
[1764968593321,0.22371614,89399.0,89398.0,0.06876299]
[1764968593471,0.22371614,89399.0,89398.0,0.06976299]
[1764968594294,0.22371614,89399.0,89398.0,0.06876299]
[1764968595027,0.22371614,89399.0,89398.0,0.06776299]
[1764968595438,0.22371614,89399.0,89398.0,0.06876299]
[1764968596673,0.22371614,89399.0,89398.0,0.07400299]
[1764968596834,0.22371364,89400.0,89399.0,0.06252299]
[1764968597354,0.0111853,89403.0,89399.0,0.3026646]
[1764968597545,0.0111853,89403.0,89402.0,0.00524]
[1764968598186,0.23489143,89403.0,89402.0,0.00524]
[1764968600447,0.23589143,89403.0,89402.0,0.00524]
[1764968604031,0.001,89403.0,89402.0,0.00524]
[1764968604248,0.22470613,89403.0,89402.0,0.00524]
[1764968606315,0.001,89403.0,89402.0,0.00524]
[1764968606813,0.22470613,89403.0,89402.0,0.00524]
[1764968609770,0.22371364,89400.0,89399.0,0.06252299]
[1764968611788,0.22371364,89400.0,89399.0,0.06352299]
[1764968613232,0.26550651,89400.0,89399.0,0.001]
[1764968613881,0.22532651,89400.0,89399.0,0.001]
[1764968614094,0.22532651,89400.0,89399.0,0.00624]
[1764968614322,0.22532651,89400.0,89399.0,0.001]
[1764968614527,0.22373167,89393.0,89391.0,0.06252299]
[1764968615105,0.22373167,89393.0,89392.0,0.06776299]
[1764968615506,0.23491367,89395.0,89392.0,0.07894967]
[1764968615686,0.23490869,89397.0,89395.0,0.06252299]
[1764968615885,0.01118605,89397.0,89396.0,0.02207322]
[1764968618633,0.01118605,89397.0,89396.0,0.00524]
[1764968619232,0.2349172,89394.0,89393.0,0.06252299]
[1764968619473,0.22373366,89392.0,89391.0,0.06252299]
[1764968619915,0.23490802,89397.0,89391.0,0.06252299]
[1764968619916,0.0111858,89399.0,89393.0,0.01118655]
[1764968620145,0.22372866,89394.0,89393.0,0.06252299]
[1764968620357,0.2237244,89396.0,89393.0,0.28625415]
[1764968620572,0.23491058,89396.0,89395.0,0.00524]
[1764968620715,0.01118618,89396.0,89395.0,0.06776299]
[1764968621538,0.23490849,89397.0,89395.0,0.06776299]
[1764968621735,0.23490434,89399.0,89396.0,0.00524]
[1764968621944,0.234897,89402.0,89399.0,0.06252299]
[1764968622272,0.22371149,89401.0,89399.0,0.06252299]
[1764968622423,0.23489932,89400.0,89398.0,0.06252299]
[1764968622655,0.23489932,89400.0,89398.0,0.06776299]
[1764968622887,0.23489932,89400.0,89399.0,0.00524]
[1764968624465,0.234897,89402.0,89399.0,0.00524]
[1764968624663,0.23489407,89402.0,89401.0,0.00524]
[1764968625304,0.0111853,89403.0,89401.0,0.00524]
[1764968625601,0.23489212,89403.0,89402.0,0.00524]
[1764968625806,0.01118493,89406.0,89402.0,0.00524]
[1764968625981,0.01138318,89420.0,89407.0,0.28621912]
[1764968626209,0.0002,89420.0,89407.0,0.29145912]
[1764968626410,0.0002,89420.0,89407.0,0.29669912]
[1764968627470,0.0002,89420.0,89407.0,0.29769912]
[1764968629064,0.0002,89420.0,89407.0,0.29869912]
[1764968629720,0.0002,89420.0,89407.0,0.62169912]
[1764968629920,0.0002,89420.0,89419.0,0.2861891]
[1764968630126,0.00028411,89420.0,89419.0,0.3143491]
[1764968630323,0.00064713,89420.0,89419.0,0.3143491]
[1764968630527,0.00064713,89420.0,89419.0,0.33642232]
[1764968631883,0.00064713,89420.0,89419.0,0.33742232]
[1764968632484,0.00064713,89420.0,89419.0,0.33942232]
[1764968635475,0.0002,89430.0,89429.0,0.28616409]
[1764968635676,0.0002,89430.0,89429.0,0.29140409]
[1764968635951,0.0002,89430.0,89429.0,0.29664409]
[1764968636308,0.0002,89430.0,89429.0,0.31432409]
[1764968637472,0.0002,89440.0,89439.0,0.28613908]
[1764968637610,0.00028409,89440.0,89439.0,0.30905908]
[1764968637826,0.00028409,89440.0,89439.0,0.31429908]
[1764968639514,0.00028409,89440.0,89439.0,0.3311323]
[1764968640678,0.00028409,89440.0,89439.0,0.3321323]
[1764968640880,0.00028409,89440.0,89439.0,0.6551323]
[1764968641078,0.00088893,89440.0,89439.0,0.6551323]
[1764968641295,0.00088893,89440.0,89439.0,0.6541323]
[1764968641720,0.00088893,89440.0,89439.0,0.6571323]
[1764968642396,0.00088893,89440.0,89439.0,0.6591323]
[1764968644602,0.00088893,89440.0,89439.0,0.6571323]
[1764968644999,0.00088893,89440.0,89439.0,0.6581323]
[1764968645205,0.00088893,89440.0,89439.0,0.6404523]
[1764968645407,0.00088893,89440.0,89439.0,0.6551323]
[1764968645615,0.00088893,89440.0,89439.0,0.6541323]
[1764968645821,0.00088893,89440.0,89439.0,0.6561323]
[1764968646147,0.00088893,89440.0,89439.0,0.6541323]
[1764968646392,0.00088893,89440.0,89439.0,0.6561323]
[1764968646800,0.00088893,89440.0,89439.0,0.6541323]
[1764968646941,0.00088893,89440.0,89439.0,0.6581323]
[1764968647526,0.00088893,89440.0,89439.0,0.6561323]
[1764968647701,0.00088893,89440.0,89439.0,0.6673106]
[1764968647885,0.0002,89460.0,89459.0,0.28608909]
[1764968648080,0.0002,89460.0,89459.0,0.30900909]
[1764968648505,0.0002,89460.0,89459.0,0.31424909]
[1764968649588,0.0002,89460.0,89459.0,0.33108231]
[1764968649808,0.0002,89460.0,89459.0,0.33208231]
[1764968651195,0.0002,89460.0,89459.0,0.65508231]
[1764968651414,0.0002,89460.0,89459.0,0.65608231]
[1764968653627,0.00080465,89460.0,89459.0,0.80488231]
[1764968653752,0.00080465,89460.0,89459.0,0.46420231]
[1764968654103,0.00080465,89460.0,89459.0,0.48188231]
[1764968655019,0.00080465,89460.0,89459.0,0.06976299]
[1764968655244,0.00241752,89460.0,89459.0,0.002]
[1764968655383,0.04191752,89460.0,89459.0,0.002]
[1764968655837,0.36491752,89460.0,89459.0,0.002]
[1764968656010,0.36491752,89460.0,89459.0,0.001]
[1764968656626,0.22361359,89440.0,89439.0,0.01683322]
[1764968656952,0.22361359,89440.0,89435.0,0.0111813]
[1764968656953,0.22361859,89438.0,89435.0,0.01683322]
[1764968657182,0.23479742,89439.0,89437.0,0.06252299]
[1764968657313,0.23479742,89439.0,89437.0,0.06776299]
[1764968658358,0.01118067,89440.0,89437.0,0.07894404]
[1764968658561,0.01118067,89440.0,89439.0,0.00524]
[1764968659325,0.01118067,89440.0,89439.0,0.01048]
[1764968659523,0.22361609,89439.0,89437.0,0.06252299]
[1764968661785,0.0111818,89431.0,89429.0,0.00524]
[1764968661985,0.2236386,89430.0,89429.0,0.00532409]
[1764968662210,0.2631386,89430.0,89429.0,8.409e-05]
[1764968662984,0.5861386,89430.0,89429.0,8.409e-05]
[1764968663289,0.69584366,89430.0,89429.0,8.409e-05]
[1764968663641,0.69584366,89430.0,89429.0,0.00108409]
[1764968664042,0.5861386,89430.0,89429.0,0.00108409]
[1764968664289,0.5861386,89430.0,89429.0,8.409e-05]
[1764968664647,0.5891386,89430.0,89429.0,8.409e-05]
[1764968665051,0.5861386,89430.0,89429.0,8.409e-05]
[1764968665471,0.5891386,89430.0,89429.0,8.409e-05]
[1764968667162,0.5943786,89430.0,89429.0,8.409e-05]
[1764968669274,0.70408366,89430.0,89429.0,8.409e-05]
[1764968670716,0.01118255,89425.0,89422.0,1e-08]
[1764968670852,0.5617561,89423.0,89422.0,1e-08]
[1764968671252,0.5861561,89423.0,89422.0,1e-08]
[1764968672863,0.60298932,89423.0,89422.0,1e-08]
[1764968673080,0.71269438,89423.0,89422.0,1e-08]
[1764968674368,0.71469438,89423.0,89422.0,1e-08]
[1764968674592,0.71630725,89423.0,89422.0,1e-08]
[1764968675350,0.72774725,89423.0,89422.0,1e-08]
[1764968677501,0.61804219,89423.0,89422.0,1e-08]
[1764968677689,0.63572219,89423.0,89422.0,1e-08]
[1764968680085,0.61804219,89423.0,89422.0,1e-08]
[1764968680352,0.63572219,89423.0,89422.0,1e-08]
[1764968683286,0.66980409,89423.0,89422.0,1e-08]
[1764968683491,0.77950915,89423.0,89422.0,1e-08]
[1764968683682,0.89730915,89423.0,89422.0,1e-08]
[1764968683883,0.77950915,89423.0,89422.0,1e-08]
[1764968685835,0.65212409,89423.0,89422.0,1e-08]
[1764968686038,0.66980409,89423.0,89422.0,1e-08]
[1764968687297,0.69974088,89423.0,89422.0,1e-08]
[1764968688110,0.66980409,89423.0,89422.0,1e-08]
[1764968695440,0.65212409,89423.0,89422.0,1e-08]
[1764968695654,0.70642433,89423.0,89422.0,1e-08]
[1764968697909,0.22374868,89386.0,89385.0,0.06252299]
[1764968698105,0.22374868,89386.0,89385.0,0.0626071]
[1764968698515,0.26548155,89386.0,89385.0,8.411e-05]
[1764968698739,0.28316155,89386.0,89385.0,8.411e-05]
[1764968699274,0.28316155,89386.0,89385.0,0.00408411]
[1764968699400,0.26548155,89386.0,89385.0,0.00108411]
[1764968699596,0.28316155,89386.0,89385.0,8.411e-05]
[1764968699798,0.28316155,89386.0,89385.0,0.00108411]
[1764968700051,0.25831155,89386.0,89385.0,0.00108411]
[1764968701042,0.24142868,89386.0,89385.0,0.00108411]
[1764968701234,0.22374868,89386.0,89385.0,0.00632411]
[1764968701379,0.24142868,89386.0,89385.0,0.00632411]
[1764968701571,0.24142868,89386.0,89385.0,0.00108411]
[1764968701969,0.24142868,89386.0,89385.0,0.01156411]
[1764968701970,0.22374868,89386.0,89385.0,0.01156411]
[1764968703277,0.22374868,89386.0,89385.0,0.00632411]
[1764968703905,0.22374868,89386.0,89385.0,0.00744385]
[1764968704535,0.22374868,89386.0,89385.0,0.00220385]
[1764968704735,0.26478868,89386.0,89385.0,0.00220385]
[1764968704938,0.26640155,89386.0,89385.0,0.00220385]
[1764968705140,0.27681892,89386.0,89385.0,0.00220385]
[1764968706667,0.27881892,89386.0,89385.0,0.00120385]
[1764968706899,0.28081892,89386.0,89385.0,0.00120385]
[1764968707518,0.60381892,89386.0,89385.0,0.00120385]
[1764968707732,0.62782166,89386.0,89385.0,0.00120385]
[1764968707925,0.65777402,89386.0,89385.0,0.00120385]
[1764968708332,0.62782166,89386.0,89385.0,0.00120385]
[1764968708924,0.66775814,89386.0,89385.0,0.00120385]
[1764968709123,0.62782166,89386.0,89385.0,0.00120385]
[1764968709270,0.73752672,89386.0,89385.0,0.00120385]
[1764968709884,0.77744574,89386.0,89385.0,0.00120385]
[1764968710313,0.22383633,89351.0,89350.0,0.06776299]
[1764968710530,0.22383633,89351.0,89350.0,0.06815927]
[1764968710908,0.22383633,89351.0,89350.0,0.00669612]
[1764968711539,0.22383633,89351.0,89350.0,0.01169612]
[1764968711691,0.22383633,89351.0,89350.0,0.01369612]
[1764968712100,0.23596633,89351.0,89350.0,0.01169612]
[1764968712505,0.23596633,89351.0,89350.0,0.01269612]
[1764968713386,0.22383633,89351.0,89350.0,0.01269612]
[1764968714479,0.22383633,89351.0,89350.0,0.01793612]
[1764968714678,0.24151633,89351.0,89350.0,0.01793612]
[1764968714879,0.24151633,89351.0,89350.0,0.01269612]
[1764968715451,0.24151633,89351.0,89350.0,0.01793612]
[1764968720251,0.24151633,89351.0,89350.0,0.01269612]
[1764968721753,0.24151633,89351.0,89350.0,0.00745612]
[1764968723342,0.2592292,89351.0,89350.0,0.00745612]
[1764968723940,0.2431292,89351.0,89350.0,0.00745612]
[1764968724340,0.2254492,89351.0,89350.0,0.00745612]
[1764968724699,0.2431292,89351.0,89350.0,0.00745612]
[1764968725380,0.2254492,89351.0,89350.0,0.00745612]
[1764968725725,0.2664892,89351.0,89350.0,0.00745612]
[1764968725929,0.2841692,89351.0,89350.0,0.00745612]
[1764968727660,0.2841692,89351.0,89350.0,0.00645612]
[1764968727954,0.2841692,89351.0,89350.0,0.00245612]
[1764968728153,0.2431292,89351.0,89350.0,0.00245612]
[1764968728307,0.2431292,89351.0,89350.0,0.00769612]
[1764968728308,0.2441292,89351.0,89350.0,0.00769612]
[1764968728534,0.2441292,89351.0,89350.0,0.00145612]
[1764968728874,0.2284492,89351.0,89350.0,0.00145612]
[1764968729171,0.2461292,89351.0,89350.0,0.00145612]
[1764968729397,0.2992992,89351.0,89350.0,0.00145612]
[1764968729805,0.2566792,89351.0,89350.0,0.00145612]
[1764968729988,0.2743592,89351.0,89350.0,0.00145612]
[1764968730283,0.2992992,89351.0,89350.0,0.00145612]
[1764968730487,0.2743592,89351.0,89350.0,0.00145612]
[1764968730836,0.2992992,89351.0,89350.0,0.00145612]
[1764968731251,0.2582592,89351.0,89350.0,0.00145612]
[1764968732365,0.2405792,89351.0,89350.0,0.00145612]
[1764968732581,0.2582592,89351.0,89350.0,0.00145612]
[1764968732986,0.2461292,89351.0,89350.0,0.00145612]
[1764968734889,0.22683633,89351.0,89350.0,0.00669612]
[1764968735096,0.24451633,89351.0,89350.0,0.00669612]
[1764968735812,0.24251633,89351.0,89350.0,0.00669612]
[1764968736069,0.24151633,89351.0,89350.0,0.00669612]
[1764968736407,0.22383633,89351.0,89350.0,0.00669612]
[1764968736616,0.01119081,89359.0,89350.0,0.00669612]
[1764968736617,0.23501793,89355.0,89353.0,0.06252299]
[1764968736815,0.01119131,89355.0,89353.0,0.06252299]
[1764968737015,0.23502002,89355.0,89354.0,0.07300299]
[1764968737219,0.01119131,89355.0,89354.0,0.07300299]
[1764968737427,0.23501549,89356.0,89355.0,0.06252299]
[1764968737629,0.23501549,89356.0,89355.0,0.08983621]
[1764968738254,0.22382181,89357.0,89355.0,0.08983621]
[1764968738484,0.22380095,89366.0,89358.0,0.06252299]
[1764968738682,0.22380095,89366.0,89361.0,0.00524]
[1764968738893,0.01118981,89367.0,89365.0,0.00524]
[1764968738894,0.23498725,89367.0,89365.0,0.00524]
[1764968739094,0.2349727,89373.0,89369.0,0.06252299]
[1764968739228,0.01118918,89372.0,89369.0,0.28631293]
[1764968739438,0.23497534,89372.0,89371.0,0.01683322]
[1764968739639,0.23497534,89372.0,89371.0,0.02207322]
[1764968739862,0.23497534,89372.0,89371.0,0.02731322]
[1764968740261,0.23497534,89372.0,89371.0,0.08983621]
[1764968741082,0.23497534,89372.0,89371.0,0.09383621]
[1764968742646,0.01768,89381.0,89371.0,0.09383621]
[1764968742647,0.22375143,89385.0,89378.0,0.01118843]
[1764968742858,0.0111878,89383.0,89380.0,0.23495188]
[1764968743058,0.0111878,89383.0,89379.0,0.06252299]
[1764968743059,0.0111878,89383.0,89379.0,0.29747736]
[1764968743276,0.23494399,89383.0,89382.0,0.00524]
[1764968744092,0.23494399,89383.0,89382.0,0.06776299]
[1764968744296,0.2237354,89392.0,89382.0,0.06776299]
[1764968744297,0.23492434,89391.0,89386.0,0.06252299]
[1764968744493,0.23492434,89391.0,89388.0,0.06252299]
[1764968744696,0.23492434,89391.0,89390.0,0.00524]
[1764968745081,0.23492434,89391.0,89390.0,0.01048]
[1764968746201,0.23492434,89391.0,89390.0,0.01148]
[1764968746413,0.23492434,89391.0,89390.0,0.00624]
[1764968747394,0.23492434,89391.0,89390.0,0.01024]
[1764968748636,0.23492434,89391.0,89390.0,0.01548]
[1764968749694,0.23492434,89391.0,89390.0,0.01024]
[1764968750246,0.23492434,89391.0,89390.0,0.01548]
[1764968750658,0.23492434,89391.0,89390.0,0.01024]
[1764968753490,0.23492434,89391.0,89390.0,0.01548]
[1764968753913,0.22373402,89392.0,89390.0,0.01548]
[1764968754117,0.22373402,89392.0,89390.0,0.005]
[1764968754341,0.22373402,89392.0,89391.0,0.01048]
[1764968754540,0.22373116,89393.0,89392.0,0.06252299]
[1764968754857,0.22373116,89393.0,89392.0,0.06776299]
[1764968755756,0.22373116,89393.0,89392.0,0.07300299]
[1764968756101,0.22373116,89393.0,89392.0,0.07400299]
[1764968757026,0.22373116,89393.0,89392.0,0.07176299]
[1764968757637,0.22373116,89393.0,89392.0,0.06652299]
[1764968758733,0.22373116,89393.0,89392.0,0.004]
[1764968758734,0.22534403,89393.0,89392.0,0.004]
[1764968758963,0.26381403,89393.0,89392.0,0.004]
[1764968760002,0.26381403,89393.0,89392.0,0.001]
[1764968760208,0.26581403,89393.0,89392.0,0.001]
[1764968760396,0.2237662,89379.0,89378.0,0.06776299]
[1764968760602,0.2237662,89379.0,89378.0,0.06784278]
[1764968761522,0.2237662,89379.0,89378.0,0.06260278]
[1764968761738,0.2237662,89379.0,89378.0,0.06360278]
[1764968761876,0.2237662,89379.0,89378.0,0.06760278]
[1764968762416,0.2237662,89379.0,89378.0,0.07284278]
[1764968763666,0.2237662,89379.0,89378.0,0.07808278]